bitfinex/quotes_BTCUSD_20250211
["timestamp","ask_amount","ask_price","bid_price","bid_amount"]
[1739308179781,0.00980784,95512.0,95508.0,0.0001065]
[1739308180012,0.00980784,95512.0,95509.0,0.005]
[1739308180227,0.00980784,95511.0,95509.0,0.015]
[1739308180565,0.00980784,95511.0,95509.0,0.005]
[1739308181561,0.00980784,95510.0,95509.0,0.011]
[1739308182406,0.00980784,95510.0,95509.0,0.016]
[1739308182722,0.02621578,95510.0,95509.0,0.011]
[1739308182954,0.02621578,95510.0,95508.0,0.0001065]
[1739308183332,0.02621578,95510.0,95509.0,0.012]
[1739308183537,0.02621578,95510.0,95509.0,0.018]
[1739308183985,0.02621578,95510.0,95509.0,0.006]
[1739308184861,0.02621578,95510.0,95509.0,0.012]
[1739308185697,0.02621578,95510.0,95509.0,0.018]
[1739308186668,0.0404692,95510.0,95509.0,0.018]
[1739308191955,0.0404692,95510.0,95509.0,0.0181065]
[1739308194209,0.45862392,95510.0,95509.0,0.0181065]
[1739308194403,0.49086162,95510.0,95509.0,0.0181065]
[1739308194983,0.49086162,95510.0,95509.0,0.0121065]
[1739308195369,0.49086162,95510.0,95509.0,0.0021065]
[1739308195370,0.45862392,95510.0,95509.0,0.0021065]
[1739308195749,0.45862392,95510.0,95509.0,0.0061065]
[1739308196096,0.45862392,95510.0,95509.0,0.0001065]
[1739308197371,0.43361591,95510.0,95509.0,0.0001065]
[1739308197590,0.45002659,95510.0,95509.0,0.0001065]
[1739308206064,0.18111226,95510.0,95509.0,0.0001065]
[1739308208209,0.18111226,95510.0,95509.0,0.0041065]
[1739308208496,0.00980784,95510.0,95509.0,0.0061065]
[1739308208698,0.00900784,95510.0,95509.0,0.1370065]
[1739308208910,0.00900784,95510.0,95509.0,0.15072339]
[1739308210682,0.00900784,95510.0,95509.0,0.14872339]
[1739308210883,0.00900784,95510.0,95509.0,0.15372339]
[1739308211295,0.00900784,95510.0,95509.0,0.14972339]
[1739308211561,0.00900784,95510.0,95509.0,0.1460065]
[1739308214591,0.00900784,95510.0,95509.0,0.1360065]
[1739308214733,0.00900784,95510.0,95509.0,0.1310065]
[1739308214936,0.00900784,95510.0,95509.0,0.1490065]
[1739308226919,0.0092315,95510.0,95509.0,0.1490065]
[1739308232413,0.15705,95511.0,95509.0,0.1482065]
[1739308232614,0.157046,95514.0,95509.0,0.1482065]
[1739308232820,0.157045,95514.0,95509.0,0.1482065]
[1739308233230,0.157051,95510.0,95509.0,0.1482065]
[1739308233433,0.157051,95510.0,95509.0,0.006]
[1739308233639,0.157051,95510.0,95509.0,0.017]
[1739308234040,0.157051,95510.0,95509.0,0.006]
[1739308234244,0.157053,95509.0,95508.0,0.0001065]
[1739308235328,0.03014706,95517.0,95509.0,0.049]
[1739308235523,0.03014706,95517.0,95509.0,0.1299]
[1739308236051,0.157041,95516.0,95509.0,0.1299]
[1739308236410,0.03014706,95517.0,95509.0,0.1299]
[1739308236659,0.209391,95515.0,95509.0,0.0809]
[1739308236834,0.03014706,95517.0,95509.0,0.0809]
[1739308236835,0.157049,95512.0,95509.0,0.0809]
[1739308237036,0.03014706,95517.0,95509.0,0.0809]
[1739308237245,0.157051,95510.0,95509.0,0.0889]
[1739308237568,0.157051,95510.0,95509.0,0.0909]
[1739308237774,0.157051,95510.0,95509.0,0.0809]
[1739308237991,0.157051,95510.0,95509.0,0.0969]
[1739308238221,0.157051,95510.0,95509.0,0.0919]
[1739308238419,0.157051,95511.0,95509.0,0.0919]
[1739308238609,0.03014706,95517.0,95509.0,0.0919]
[1739308238610,0.157047,95513.0,95509.0,0.0869]
[1739308238905,0.03014706,95517.0,95509.0,0.0989]
[1739308239544,0.01640785,95517.0,95510.0,0.00990624]
[1739308239677,0.3256,95521.0,95513.0,0.0809]
[1739308240316,0.00022366,95522.0,95513.0,0.0809]
[1739308240512,0.00022366,95522.0,95513.0,0.237945]
[1739308240807,0.00022366,95522.0,95515.0,0.0809]
[1739308242086,0.00022366,95522.0,95515.0,0.0839]
[1739308242467,0.00022366,95522.0,95516.0,0.157041]
[1739308242623,0.00022366,95522.0,95516.0,0.0809]
[1739308243641,0.00022366,95522.0,95519.0,0.157035]
[1739308243852,0.00022366,95522.0,95521.0,0.157033]
[1739308244066,0.00022366,95522.0,95521.0,0.237933]
[1739308244550,0.00022366,95522.0,95521.0,0.1299]
[1739308244750,0.01004441,95522.0,95521.0,0.321062]
[1739308245059,0.01004441,95522.0,95521.0,0.42356565]
[1739308245326,0.01004441,95522.0,95521.0,0.44656565]
[1739308246313,0.01004441,95522.0,95521.0,0.45056565]
[1739308246917,0.00022366,95522.0,95521.0,0.45056565]
[1739308247240,0.00022366,95522.0,95521.0,0.44656565]
[1739308247427,0.00022366,95522.0,95521.0,0.44956565]
[1739308247835,0.00022366,95522.0,95521.0,0.44656565]
[1739308248050,0.00022366,95522.0,95521.0,0.46356565]
[1739308249334,0.00022366,95522.0,95521.0,0.61356565]
[1739308249814,0.00022366,95522.0,95521.0,0.60956565]
[1739308250272,0.00022366,95522.0,95521.0,0.61556565]
[1739308250621,0.0164032,95558.0,95543.0,0.1259]
[1739308250822,0.0164032,95558.0,95551.0,0.0771]
[1739308251033,0.01481792,95558.0,95551.0,0.17960365]
[1739308251312,0.15718187,95567.0,95555.0,0.156976]
[1739308251823,0.00022387,95567.0,95558.0,0.0771]
[1739308252003,0.00066907,95566.0,95560.0,0.209292]
[1739308252208,0.00066907,95566.0,95561.0,0.10250365]
[1739308252422,0.00066907,95566.0,95563.0,0.156963]
[1739308252977,0.00066907,95566.0,95561.0,0.31179165]
[1739308252978,0.00066907,95566.0,95564.0,0.156962]
[1739308253176,0.00066907,95566.0,95565.0,0.0771]
[1739308253404,0.00066907,95566.0,95565.0,0.14770963]
[1739308253970,0.00066907,95566.0,95565.0,0.0771]
[1739308254208,0.00066907,95566.0,95565.0,0.234061]
[1739308255000,0.00066907,95566.0,95565.0,0.33656465]
[1739308255212,0.00066907,95566.0,95565.0,0.34956465]
[1739308256001,0.156937,95580.0,95567.0,0.156956]
[1739308256189,0.00011648,95579.0,95568.0,0.07681257]
[1739308256423,0.00011648,95579.0,95573.0,0.156948]
[1739308256651,0.00011648,95579.0,95571.0,0.15695]
[1739308256882,0.00011648,95579.0,95571.0,0.15799621]
[1739308257115,0.00011648,95579.0,95569.0,0.38170672]
[1739308257334,0.00011648,95579.0,95578.0,0.234039]
[1739308257550,0.00011648,95579.0,95578.0,0.33654265]
[1739308259663,0.00011648,95579.0,95578.0,0.33854265]
[1739308259862,0.00011648,95579.0,95578.0,0.34254265]
[1739308260068,0.16960488,95595.0,95578.0,0.18560365]
[1739308260363,0.156923,95588.0,95578.0,0.18560365]
[1739308260614,0.00477341,95587.0,95578.0,0.18560365]
[1739308260964,0.156923,95588.0,95578.0,0.18160365]
[1739308261169,0.00476178,95587.0,95578.0,0.17960365]
[1739308261368,0.02940758,95599.0,95578.0,0.0771]
[1739308261596,0.209211,95597.0,95578.0,0.0771]
[1739308261757,0.00476685,95598.0,95578.0,0.0771]
[1739308261955,0.156924,95588.0,95578.0,0.0771]
[1739308262166,0.00475755,95587.0,95578.0,0.0771]
[1739308263007,0.00475755,95587.0,95578.0,0.1423571]
[1739308263222,0.1570276,95589.0,95578.0,0.0771]
[1739308263503,0.00475191,95586.0,95578.0,0.0771]
[1739308263670,0.00475283,95588.0,95578.0,0.0771]
[1739308263870,0.00475145,95585.0,95578.0,0.0771]
[1739308264100,0.00475283,95587.0,95578.0,0.0771]
[1739308264295,0.00475145,95584.0,95579.0,0.156937]
[1739308264499,0.0001066,95589.0,95579.0,0.1701937]
[1739308264703,0.00475099,95583.0,95579.0,0.1701937]
[1739308265051,0.00475099,95583.0,95579.0,0.156937]
[1739308265262,0.00475099,95583.0,95578.0,0.0771]
[1739308265462,0.00475099,95583.0,95578.0,0.234039]
[1739308265817,0.22560493,95599.0,95578.0,0.0771]
[1739308265977,0.01255314,95595.0,95578.0,0.0771]
[1739308266173,0.01639693,95599.0,95579.0,0.21696]
[1739308266174,0.00475081,95594.0,95579.0,0.21696]
[1739308266381,0.15692,95590.0,95579.0,0.164647]
[1739308266576,0.00474897,95589.0,95579.0,0.156937]
[1739308267562,0.156923,95588.0,95578.0,0.0771]
[1739308267759,0.00474805,95587.0,95578.0,0.234039]
[1739308267975,0.209225,95591.0,95578.0,0.0771]
[1739308268180,0.16166989,95590.0,95579.0,0.156938]
[1739308268378,0.16167089,95590.0,95578.0,0.0771]
[1739308268977,0.16167089,95590.0,95579.0,0.156938]
[1739308269188,0.1894923,95590.0,95578.0,0.0771]
[1739308269393,0.1894923,95590.0,95570.0,0.0488]
[1739308269394,0.156926,95586.0,95572.0,0.156949]
[1739308269604,0.156926,95587.0,95573.0,0.156947]
[1739308269901,0.0047893,95585.0,95571.0,0.078]
[1739308270110,0.00478884,95586.0,95572.0,0.209266]
[1739308270318,0.02903618,95599.0,95572.0,0.209266]
[1739308270523,0.00478884,95585.0,95574.0,0.156946]
[1739308270732,0.156925,95587.0,95574.0,0.156946]
[1739308270941,0.0047893,95584.0,95572.0,0.209266]
[1739308271154,0.156928,95585.0,95572.0,0.156948]
[1739308271355,0.00478976,95583.0,95573.0,0.156947]
[1739308271556,0.00479023,95584.0,95573.0,0.156947]
[1739308271758,0.0047893,95582.0,95573.0,0.156947]
[1739308271971,0.00478884,95583.0,95573.0,0.156947]
[1739308272176,0.00478838,95582.0,95574.0,0.156946]
[1739308272451,0.156926,95587.0,95574.0,0.156946]
[1739308272668,0.00478792,95581.0,95574.0,0.156946]
[1739308272877,0.156926,95587.0,95574.0,0.156946]
[1739308273048,0.00478746,95580.0,95574.0,0.156946]
[1739308273232,0.16966943,95587.0,95574.0,0.156946]
[1739308273439,0.16966943,95587.0,95574.0,0.158946]
[1739308273666,0.00479022,95586.0,95574.0,0.158946]
[1739308273883,0.00479022,95586.0,95574.0,0.002]
[1739308274109,0.00479022,95586.0,95571.0,0.287266]
[1739308274265,0.00479022,95586.0,95574.0,0.003]
[1739308275618,0.00479022,95586.0,95573.0,0.00022365]
[1739308281241,0.01274343,95587.0,95573.0,0.00022365]
[1739308281444,0.00478737,95585.0,95573.0,0.00022365]
[1739308281651,0.00478784,95586.0,95573.0,0.00022365]
[1739308281829,0.156946,95574.0,95573.0,0.00022365]
[1739308282049,0.209244,95582.0,95573.0,0.00022365]
[1739308282252,0.00478969,95574.0,95573.0,0.00022365]
[1739308282454,0.156944,95575.0,95573.0,0.00022365]
[1739308282654,0.00478969,95574.0,95573.0,0.00022365]
[1739308283086,0.00478969,95574.0,95573.0,0.00122365]
[1739308283284,0.00478969,95574.0,95573.0,0.00322365]
[1739308283482,0.00478969,95574.0,95573.0,0.00222365]
[1739308283818,0.16173569,95574.0,95573.0,0.00422365]
[1739308284986,0.16173569,95574.0,95573.0,0.00722365]
[1739308285180,0.16173569,95574.0,95573.0,0.01022365]
[1739308285379,0.17435869,95574.0,95573.0,0.01022365]
[1739308285587,0.17435869,95574.0,95573.0,0.00022365]
[1739308285784,0.17435869,95574.0,95573.0,0.00322365]
[1739308285980,0.17435869,95574.0,95573.0,0.00022365]
[1739308286194,0.19075709,95574.0,95573.0,0.00022365]
[1739308286398,0.19075709,95574.0,95573.0,0.00722365]
[1739308286600,0.22299479,95574.0,95573.0,0.00622365]
[1739308286845,0.19075709,95574.0,95573.0,0.00222365]
[1739308288228,0.19075709,95574.0,95573.0,0.00422365]
[1739308288639,0.19075709,95574.0,95573.0,0.00222365]
[1739308288836,0.19075709,95574.0,95573.0,0.00022365]
[1739308291019,0.29326074,95574.0,95573.0,0.00022365]
[1739308297656,0.03381109,95574.0,95573.0,0.00022365]
[1739308297855,0.19075709,95574.0,95573.0,0.00022365]
[1739308298085,0.17435869,95574.0,95573.0,0.00022365]
[1739308299135,0.17435869,95574.0,95573.0,0.00222365]
[1739308299520,0.17435869,95574.0,95573.0,0.00022365]
[1739308299849,0.01741269,95574.0,95573.0,0.00222365]
[1739308300178,0.00478969,95574.0,95573.0,0.00222365]
[1739308300383,0.01308151,95576.0,95573.0,0.00222365]
[1739308300610,0.0046649,95574.0,95573.0,0.00222365]
[1739308300852,0.156936,95581.0,95573.0,0.00422365]
[1739308301262,0.16160367,95580.0,95573.0,0.00222365]
[1739308301473,0.00466767,95580.0,95573.0,0.00222365]
[1739308301675,0.00466767,95580.0,95573.0,0.00822365]
[1739308301853,0.00466767,95580.0,95573.0,0.00622365]
[1739308302053,0.00466767,95580.0,95573.0,0.00422365]
[1739308302249,0.01639789,95579.0,95573.0,0.00422365]
[1739308302451,0.01639789,95579.0,95575.0,0.0488]
[1739308302656,0.0001065,95589.0,95576.0,0.0758]
[1739308302657,0.16987216,95587.0,95576.0,0.0758]
[1739308302858,0.156926,95587.0,95576.0,0.0758]
[1739308303098,0.1501065,95589.0,95576.0,0.0758]
[1739308303420,0.156928,95585.0,95576.0,0.0758]
[1739308303743,0.156927,95586.0,95576.0,0.0758]
[1739308304308,0.156927,95586.0,95576.0,0.10437727]
[1739308305010,0.0001065,95589.0,95576.0,0.10437727]
[1739308305235,0.0001065,95589.0,95577.0,0.0758]
[1739308305387,0.0001065,95589.0,95575.0,0.0488]
[1739308305587,0.0001065,95589.0,95587.0,0.156925]
[1739308305791,0.0001065,95589.0,95579.0,0.14765372]
[1739308305792,0.0001065,95589.0,95588.0,0.156923]
[1739308306004,0.0001065,95589.0,95588.0,0.2484153]
[1739308306623,0.0001065,95589.0,95588.0,0.0914923]
[1739308306827,0.0001065,95589.0,95588.0,0.0758]
[1739308309434,0.0001065,95589.0,95588.0,0.38402665]
[1739308312000,0.0001065,95589.0,95588.0,0.55702665]
[1739308313011,0.0001065,95589.0,95588.0,0.56959293]
[1739308313272,0.0001065,95589.0,95588.0,0.58159293]
[1739308313470,0.0001065,95589.0,95588.0,0.68409658]
[1739308313719,0.0001065,95589.0,95588.0,0.69009658]
[1739308313896,0.0001065,95589.0,95588.0,0.67209658]
[1739308314196,0.0001065,95589.0,95588.0,0.69409658]
[1739308315795,0.0001065,95589.0,95588.0,0.6585303]
[1739308315955,0.0001065,95589.0,95588.0,0.55602665]
[1739308316945,0.0001065,95589.0,95588.0,0.40602665]
[1739308317322,0.15554529,95608.0,95588.0,0.24910365]
[1739308317615,0.156893,95607.0,95595.0,0.156911]
[1739308317842,0.15702438,95608.0,95594.0,0.209217]
[1739308318023,0.15702438,95608.0,95597.0,0.156908]
[1739308318539,0.00013338,95608.0,95597.0,0.156908]
[1739308318740,0.00013338,95608.0,95591.0,0.209224]
[1739308318961,0.00013338,95608.0,95592.0,0.06675627]
[1739308319313,0.00013338,95608.0,95597.0,0.156907]
[1739308319505,0.00013338,95608.0,95597.0,0.155407]
[1739308320452,0.156892,95607.0,95596.0,0.15691]
[1739308320657,0.00013338,95608.0,95596.0,0.15691]
[1739308320820,0.00013338,95608.0,95597.0,0.156908]
[1739308321031,0.00013338,95608.0,95598.0,0.12518783]
[1739308321233,0.00013338,95608.0,95598.0,0.0819]
[1739308321433,0.00013338,95608.0,95598.0,0.238806]
[1739308322658,0.00023988,95608.0,95598.0,0.238806]
[1739308323392,0.00023988,95608.0,95598.0,0.241806]
[1739308324014,0.00023988,95608.0,95599.0,0.156904]
[1739308325223,0.00023988,95608.0,95599.0,0.01995003]
[1739308325368,0.01601191,95613.0,95599.0,0.01995003]
[1739308325729,0.156888,95610.0,95599.0,0.02295003]
[1739308326074,0.156886,95611.0,95599.0,0.003]
[1739308326280,0.156886,95611.0,95599.0,0.163904]
[1739308326487,0.366061,95613.0,95599.0,0.160904]
[1739308326707,0.156885,95612.0,95599.0,0.156904]
[1739308326912,0.156885,95612.0,95599.0,0.158904]
[1739308327120,0.209174,95614.0,95599.0,0.003]
[1739308327338,0.156886,95611.0,95599.0,0.003]
[1739308327515,0.156886,95611.0,95599.0,0.002]
[1739308327873,0.156886,95611.0,95599.0,0.004]
[1739308328782,0.156882,95614.0,95599.0,0.002]
[1739308329096,0.156884,95612.0,95599.0,0.158905]
[1739308329248,0.156883,95613.0,95600.0,0.156903]
[1739308329674,0.156883,95613.0,95601.0,0.156901]
[1739308330078,0.156884,95612.0,95600.0,0.156902]
[1739308332052,0.156884,95612.0,95601.0,0.001]
[1739308332254,0.156884,95612.0,95600.0,0.156902]
[1739308332669,0.156884,95612.0,95600.0,0.157902]
[1739308332838,0.156884,95612.0,95601.0,0.156901]
[1739308333023,0.156884,95612.0,95601.0,0.157901]
[1739308333433,0.156884,95612.0,95601.0,0.156901]
[1739308333837,0.156884,95612.0,95601.0,0.158901]
[1739308335016,0.1569905,95612.0,95601.0,0.158901]
[1739308335570,0.0001065,95612.0,95601.0,0.158901]
[1739308335807,0.0001065,95612.0,95601.0,0.159901]
[1739308336232,0.0001065,95612.0,95601.0,0.003]
[1739308336554,0.0001065,95612.0,95602.0,0.1569]
[1739308337699,0.15683028,95613.0,95602.0,0.1569]
[1739308337936,0.15683028,95613.0,95602.0,0.1589]
[1739308338264,0.209169,95617.0,95602.0,0.002]
[1739308338464,0.20917,95616.0,95602.0,0.0314463]
[1739308338749,0.01595093,95618.0,95603.0,0.1271]
[1739308339004,0.00022366,95618.0,95617.0,0.156875]
[1739308339240,0.00022366,95618.0,95617.0,0.235075]
[1739308339953,0.00022366,95618.0,95617.0,0.0782]
[1739308340822,0.00022366,95618.0,95617.0,0.235075]
[1739308341066,0.00022366,95618.0,95617.0,0.0782]
[1739308341980,0.00022366,95618.0,95612.0,0.156882]
[1739308342174,0.00022366,95618.0,95613.0,0.156881]
[1739308342404,0.00022366,95618.0,95611.0,0.238284]
[1739308343168,0.00022366,95618.0,95612.0,0.156883]
[1739308343366,0.00022366,95618.0,95611.0,0.0814]
[1739308343567,0.00022366,95618.0,95611.0,0.238284]
[1739308344934,0.00022366,95618.0,95612.0,0.156883]
[1739308345135,0.00022366,95618.0,95611.0,0.0814]
[1739308345915,0.00022366,95618.0,95612.0,0.156882]
[1739308346114,0.00022366,95618.0,95611.0,0.0814]
[1739308353155,0.00022366,95618.0,95601.0,0.08162365]
[1739308353356,0.156883,95613.0,95601.0,0.08162365]
[1739308353831,0.156878,95616.0,95601.0,0.08162365]
[1739308354976,0.20938966,95618.0,95601.0,0.08262365]
[1739308355162,0.156879,95615.0,95601.0,0.08262365]
[1739308355395,0.156883,95613.0,95601.0,0.08262365]
[1739308355595,0.156883,95613.0,95601.0,0.08162365]
[1739308356067,0.00022366,95618.0,95601.0,0.08162365]
[1739308356563,0.10272731,95618.0,95601.0,0.08262365]
[1739308356787,0.10272731,95618.0,95601.0,0.08362365]
[1739308357113,0.156889,95609.0,95601.0,0.08362365]
[1739308357555,0.01639165,95612.0,95601.0,0.08362365]
[1739308357735,0.01639165,95612.0,95601.0,0.08162365]
[1739308357736,0.156887,95610.0,95601.0,0.08162365]
[1739308358361,0.01639165,95612.0,95601.0,0.08162365]
[1739308358623,0.156887,95610.0,95601.0,0.08162365]
[1739308358856,0.01639165,95612.0,95601.0,0.08162365]
[1739308359054,0.15689,95609.0,95601.0,0.08362365]
[1739308359392,0.05916407,95609.0,95601.0,0.08462365]
[1739308359594,0.156891,95608.0,95601.0,0.08562365]
[1739308360785,0.156889,95609.0,95601.0,0.08562365]
[1739308360965,0.03246705,95612.0,95601.0,0.08262365]
[1739308361184,0.156888,95610.0,95601.0,0.08562365]
[1739308361346,0.156888,95610.0,95601.0,0.08762365]
[1739308361751,0.156887,95611.0,95601.0,0.08762365]
[1739308361963,0.156889,95609.0,95601.0,0.08362365]
[1739308362610,0.156889,95609.0,95601.0,0.08562365]
[1739308362848,0.03246705,95612.0,95601.0,0.08162365]
[1739308363119,0.18935105,95612.0,95601.0,0.08162365]
[1739308363327,0.01639165,95612.0,95602.0,0.156898]
[1739308363528,0.01639165,95612.0,95603.0,0.201998]
[1739308363728,0.01639165,95612.0,95604.0,0.239096]
[1739308363969,0.00022366,95618.0,95604.0,0.239096]
[1739308364158,0.00022366,95618.0,95605.0,0.06434047]
[1739308364405,0.00022366,95618.0,95607.0,0.0822]
[1739308365093,0.01648329,95618.0,95607.0,0.0822]
[1739308365341,0.00022366,95618.0,95607.0,0.0822]
[1739308366700,0.00022366,95618.0,95608.0,0.14765372]
[1739308367390,0.17262327,95620.0,95608.0,0.2025252]
[1739308367594,0.15,95623.0,95609.0,0.209184]
[1739308367809,0.01635591,95625.0,95614.0,0.0822]
[1739308368004,0.15,95626.0,95614.0,0.0822]
[1739308368222,0.156864,95624.0,95615.0,0.04416122]
[1739308368604,0.15,95626.0,95615.0,0.04416122]
[1739308368985,0.20915,95625.0,95615.0,0.04416122]
[1739308369200,0.20915,95625.0,95614.0,0.0822]
[1739308369406,0.156864,95624.0,95614.0,0.0822]
[1739308369987,0.20915,95625.0,95614.0,0.0822]
[1739308370129,0.156866,95623.0,95614.0,0.0822]
[1739308371485,0.0001065,95619.0,95614.0,0.0822]
[1739308373588,0.0001065,95619.0,95618.0,0.156874]
[1739308373754,0.0001065,95619.0,95616.0,0.0774]
[1739308381645,0.156874,95618.0,95616.0,0.0774]
[1739308381881,0.156875,95617.0,95616.0,0.0774]
[1739308382282,0.156874,95618.0,95616.0,0.0774]
[1739308382485,0.156874,95618.0,95608.0,0.07982365]
[1739308382706,0.209165,95618.0,95608.0,0.07982365]
[1739308382913,0.156882,95614.0,95608.0,0.07982365]
[1739308383551,0.156882,95613.0,95608.0,0.07982365]
[1739308383779,0.156881,95614.0,95608.0,0.07982365]
[1739308384202,0.209167,95617.0,95608.0,0.07982365]
[1739308384401,0.156879,95615.0,95608.0,0.07982365]
[1739308384773,0.156879,95615.0,95608.0,0.08082365]
[1739308384976,0.156879,95615.0,95608.0,0.07982365]
[1739308385642,0.156878,95616.0,95608.0,0.07982365]
[1739308387478,0.156875,95617.0,95608.0,0.07982365]
[1739308387670,0.01639037,95618.0,95608.0,0.07982365]
[1739308387879,0.156879,95615.0,95608.0,0.07982365]
[1739308388075,0.209169,95617.0,95608.0,0.07982365]
[1739308388267,0.15688,95615.0,95608.0,0.07982365]
[1739308388468,0.156878,95616.0,95608.0,0.07982365]
[1739308390557,0.156879,95615.0,95608.0,0.07982365]
[1739308390773,0.20917,95616.0,95608.0,0.07982365]
[1739308391170,0.156879,95616.0,95608.0,0.07982365]
[1739308392324,0.01639037,95618.0,95608.0,0.07982365]
[1739308392622,0.156876,95617.0,95608.0,0.07982365]
[1739308393352,0.156878,95616.0,95608.0,0.07982365]
[1739308396655,0.01639037,95618.0,95608.0,0.07982365]
[1739308397579,0.156877,95617.0,95608.0,0.07982365]
[1739308399118,0.156878,95616.0,95608.0,0.07982365]
[1739308399483,0.01639037,95618.0,95608.0,0.07982365]
[1739308399654,0.156875,95617.0,95608.0,0.07982365]
[1739308403344,0.15688,95615.0,95608.0,0.07982365]
[1739308404060,0.156878,95616.0,95608.0,0.07982365]
[1739308404491,0.156877,95616.0,95608.0,0.07982365]
[1739308407139,0.01511845,95618.0,95608.0,0.07982365]
[1739308407332,0.156876,95617.0,95608.0,0.07982365]
[1739308410914,0.0001065,95619.0,95608.0,0.07982365]
[1739308411399,0.156877,95616.0,95608.0,0.07982365]
[1739308411601,0.156874,95618.0,95608.0,0.07982365]
[1739308411824,0.22566117,95619.0,95608.0,0.07982365]
[1739308412184,0.156876,95617.0,95608.0,0.07982365]
[1739308412583,0.15688,95615.0,95608.0,0.07982365]
[1739308412787,0.156877,95616.0,95608.0,0.07982365]
[1739308414571,0.22566117,95619.0,95608.0,0.07982365]
[1739308414778,0.156876,95617.0,95608.0,0.07982365]
[1739308415466,0.01649717,95619.0,95608.0,0.07982365]
[1739308415621,0.156876,95617.0,95608.0,0.07982365]
[1739308416255,0.156878,95616.0,95608.0,0.07982365]
[1739308417734,0.156876,95617.0,95608.0,0.07982365]
[1739308418327,0.01649717,95619.0,95608.0,0.07982365]
[1739308418543,0.156874,95618.0,95608.0,0.07982365]
[1739308419198,0.17337017,95619.0,95608.0,0.07982365]
[1739308419402,0.01649717,95619.0,95609.0,0.14086229]
[1739308419659,0.01649717,95619.0,95611.0,0.238085]
[1739308419862,0.01649717,95619.0,95613.0,0.0812]
[1739308420541,0.01649717,95619.0,95613.0,0.238082]
[1739308420850,0.01649717,95619.0,95618.0,0.24090276]
[1739308421178,0.0001065,95619.0,95618.0,0.49204736]
[1739308421352,0.0001065,95619.0,95618.0,0.45949829]
[1739308421706,0.0001065,95624.0,95623.0,0.156866]
[1739308421892,0.0001065,95624.0,95623.0,0.38916965]
[1739308422089,0.0001065,95624.0,95623.0,0.4916733]
[1739308423130,0.0001065,95624.0,95623.0,0.4986733]
[1739308423479,0.0001065,95624.0,95623.0,0.5136733]
[1739308425254,0.0001065,95624.0,95623.0,0.4986733]
[1739308425418,0.0001065,95624.0,95623.0,0.5146733]
[1739308425603,0.0001065,95624.0,95623.0,0.5296733]
[1739308425806,0.0001065,95624.0,95623.0,0.5366733]
[1739308426211,0.0001065,95624.0,95623.0,0.55153516]
[1739308426635,0.0002,95629.0,95628.0,0.309657]
[1739308426813,0.0002,95629.0,95628.0,0.5146643]
[1739308427024,0.0002,95629.0,95628.0,0.6646643]
[1739308427758,0.33956355,95668.0,95635.0,0.209126]
[1739308427914,0.00066843,95662.0,95660.0,0.0812]
[1739308428102,0.00066843,95662.0,95661.0,0.156803]
[1739308428307,0.00066843,95662.0,95661.0,0.18985487]
[1739308429518,0.00066843,95662.0,95661.0,0.156803]
[1739308429732,0.00066843,95662.0,95661.0,0.159803]
[1739308429935,0.00066843,95662.0,95661.0,0.164803]
[1739308430185,0.00066843,95662.0,95661.0,0.243503]
[1739308432908,0.13050655,95668.0,95661.0,0.0867]
[1739308432909,0.11267498,95668.0,95661.0,0.0867]
[1739308433128,0.11274936,95668.0,95667.0,0.156793]
[1739308433403,7.438e-05,95668.0,95667.0,0.156793]
[1739308435562,7.438e-05,95668.0,95667.0,0.157793]
[1739308436070,7.438e-05,95668.0,95667.0,0.158793]
[1739308440164,0.2091375,95680.0,95667.0,0.0675621]
[1739308440510,0.156777,95677.0,95668.0,0.156792]
[1739308440716,0.156777,95677.0,95671.0,0.156786]
[1739308440949,0.156779,95676.0,95671.0,0.156786]
[1739308441550,0.209036,95678.0,95670.0,0.156787]
[1739308441780,0.156779,95676.0,95670.0,0.156787]
[1739308442659,0.15551225,95676.0,95671.0,0.156787]
[1739308442819,0.15551225,95676.0,95670.0,0.156787]
[1739308443161,0.15051225,95676.0,95670.0,0.156787]
[1739308443462,0.0001065,95680.0,95669.0,0.209054]
[1739308443693,0.156778,95677.0,95671.0,0.156786]
[1739308443838,0.0001065,95676.0,95671.0,0.156786]
[1739308444571,0.0001065,95676.0,95672.0,0.156785]
[1739308444805,0.0001065,95676.0,95673.0,0.0787]
[1739308447758,0.1568865,95676.0,95673.0,0.0787]
[1739308447903,0.0001065,95676.0,95673.0,0.0787]
[1739308449900,0.156781,95675.0,95673.0,0.0787]
[1739308450314,0.156794,95667.0,95661.0,0.0783]
[1739308450511,0.156799,95664.0,95661.0,0.0783]
[1739308451672,0.15,95669.0,95658.0,7.438e-05]
[1739308451822,0.156802,95662.0,95661.0,0.002]
[1739308452407,0.156802,95662.0,95661.0,0.004]
[1739308453665,0.156806,95659.0,95658.0,0.00107438]
[1739308454187,0.156806,95659.0,95658.0,7.438e-05]
[1739308454188,0.306806,95659.0,95658.0,7.438e-05]
[1739308454336,0.40930965,95659.0,95658.0,7.438e-05]
[1739308454535,0.43059937,95659.0,95658.0,7.438e-05]
[1739308454708,0.40930965,95659.0,95658.0,7.438e-05]
[1739308454903,0.40930965,95659.0,95658.0,0.00907438]
[1739308455116,0.40930965,95659.0,95658.0,0.00707438]
[1739308455321,0.42900965,95659.0,95658.0,7.438e-05]
[1739308455540,0.42900965,95659.0,95658.0,0.00129803]
[1739308455724,0.42900965,95659.0,95658.0,0.00029803]
[1739308455927,2.66547065,95659.0,95658.0,0.00029803]
[1739308456156,2.74563765,95659.0,95658.0,0.00029803]
[1739308457178,2.34850865,95659.0,95658.0,0.00029803]
[1739308457585,2.19033778,95659.0,95658.0,0.00029803]
[1739308457995,2.19033778,95659.0,95658.0,0.00129803]
[1739308458719,2.05140178,95659.0,95658.0,0.00029803]
[1739308459379,2.11084778,95659.0,95658.0,0.00029803]
[1739308459580,1.73673778,95659.0,95658.0,0.00029803]
[1739308459822,0.156852,95631.0,95630.0,0.08402876]
[1739308459962,0.25935565,95631.0,95630.0,0.08402876]
[1739308460404,0.156856,95629.0,95628.0,0.00022365]
[1739308461613,0.156856,95629.0,95628.0,0.00566842]
[1739308461869,0.156856,95629.0,95628.0,0.00066842]
[1739308462345,0.156856,95629.0,95628.0,0.00366842]
[1739308462528,0.25935965,95629.0,95628.0,0.00366842]
[1739308463481,0.25935965,95629.0,95628.0,0.00066842]
[1739308463763,0.25935965,95629.0,95628.0,0.00366842]
[1739308463935,0.26035965,95629.0,95628.0,0.01166842]
[1739308464393,0.25935965,95629.0,95628.0,0.00366842]
[1739308464693,0.26035965,95629.0,95628.0,0.01066842]